bitfinex-derivatives/quotes_BTCF0:USTF0_20250222
["timestamp","ask_amount","ask_price","bid_price","bid_amount"]
[1740259846892,0.008,96594.0,96593.0,1.0024709]
[1740259848605,0.008,96594.0,96593.0,1.0388709]
[1740259848992,0.008,96594.0,96593.0,0.9396709]
[1740259849305,0.008,96594.0,96593.0,1.0388709]
[1740259861918,0.05833667,96594.0,96593.0,1.0388709]
[1740259864808,0.008,96594.0,96593.0,1.0388709]
[1740259871826,0.24444369,96594.0,96593.0,1.0388709]
[1740259877732,0.45149169,96594.0,96593.0,1.0388709]
[1740259877921,0.24444369,96594.0,96593.0,1.0388709]
[1740259879131,0.45149169,96594.0,96593.0,1.0388709]
[1740259879628,0.215048,96594.0,96593.0,1.0388709]
[1740259881127,0.008,96594.0,96593.0,1.0388709]
[1740259888027,0.215048,96594.0,96593.0,1.0388709]
[1740259888434,0.215048,96594.0,96593.0,1.0388309]
[1740259888834,0.008,96594.0,96593.0,1.0388309]
[1740259889233,0.215048,96594.0,96593.0,1.0388309]
[1740259895938,0.008,96594.0,96593.0,1.0388309]
[1740259896645,0.16323393,96594.0,96593.0,1.0388309]
[1740259897044,0.37028193,96594.0,96593.0,1.0388309]
[1740259900342,0.215048,96594.0,96593.0,1.0388309]
[1740259907752,0.215048,96594.0,96593.0,0.7226]
[1740259907944,0.215048,96594.0,96593.0,0.82176]
[1740259908144,0.215048,96594.0,96593.0,0.10016]
[1740259908444,0.215048,96594.0,96593.0,0.001]
[1740259908944,0.207063,96587.0,96586.0,0.24841952]
[1740259909151,0.423963,96587.0,96586.0,0.24841952]
[1740259909349,0.487763,96587.0,96586.0,0.08417469]
[1740259909647,0.487763,96587.0,96586.0,0.03427469]
[1740259909848,0.2070737,96582.0,96581.0,0.09916]
[1740259910151,0.2070845,96577.0,96576.0,0.09916]
[1740259911847,0.2070845,96577.0,96576.0,0.10016]
[1740259912737,0.2381845,96577.0,96576.0,0.10016]
[1740259913147,0.2685845,96577.0,96576.0,0.10016]
[1740259915051,0.31893181,96577.0,96576.0,0.10016]
[1740259918051,0.31893181,96577.0,96576.0,0.001]
[1740259918251,0.2685845,96577.0,96576.0,0.001]
[1740259923354,0.2381845,96577.0,96576.0,0.001]
[1740259930353,0.2381845,96577.0,96576.0,0.3618]
[1740259930961,0.2070845,96577.0,96576.0,0.3618]
[1740259932951,0.2070845,96577.0,96576.0,0.5688866]
[1740259933554,0.2070845,96577.0,96576.0,0.3618]
[1740259933753,0.2070845,96577.0,96576.0,0.5688866]
[1740259933955,0.2170845,96577.0,96576.0,0.5688866]
[1740259934253,0.2170845,96577.0,96576.0,0.3618]
[1740259934765,0.2170845,96577.0,96576.0,0.5688866]
[1740259934961,0.2170845,96577.0,96576.0,0.3618]
[1740259935264,0.2170845,96577.0,96576.0,0.5688866]
[1740259936362,0.2170845,96577.0,96576.0,0.3618]
[1740259937962,0.2170845,96577.0,96576.0,0.5688866]
[1740259938167,0.2170845,96577.0,96576.0,0.3618]
[1740259939560,0.2070845,96577.0,96576.0,0.3618]
[1740259939867,0.26743181,96577.0,96576.0,0.5688866]
[1740259944068,0.2170845,96577.0,96576.0,0.5688866]
[1740259948975,0.2170845,96577.0,96576.0,0.6680866]
[1740259954767,0.26742959,96577.0,96576.0,0.6680866]
[1740259956987,0.26742959,96577.0,96576.0,0.3072866]
[1740259957289,0.05034509,96577.0,96576.0,0.6680866]
[1740259957878,0.25742959,96577.0,96576.0,0.6680866]
[1740259958187,0.05034509,96577.0,96576.0,0.6680866]
[1740259959383,0.06034509,96577.0,96576.0,0.67848174]
[1740259959583,0.01,96577.0,96576.0,0.67848174]
[1740259960382,0.2070809,96579.0,96578.0,0.2588507]
[1740259960681,0.2170809,96579.0,96578.0,0.2588507]
[1740259961179,0.2170809,96579.0,96578.0,0.9804507]
[1740259962080,0.2170809,96579.0,96578.0,0.2588507]
[1740259962279,0.2070809,96579.0,96578.0,0.9804507]
[1740259962480,0.2180809,96579.0,96578.0,0.9804507]
[1740259966069,0.2180802,96579.0,96578.0,0.9804507]
[1740259967782,0.011,96579.0,96578.0,0.9804507]
[1740259968185,0.011,96579.0,96578.0,0.2588507]
[1740259968386,0.011,96579.0,96578.0,0.9804507]
[1740259968987,0.2080802,96579.0,96578.0,0.9804507]
[1740259969387,0.2180802,96579.0,96578.0,0.9804507]
[1740259969985,0.2080802,96579.0,96578.0,0.9804507]
[1740259970189,0.2180802,96579.0,96578.0,0.9804507]
[1740259971283,0.2080802,96579.0,96578.0,0.9804507]
[1740259971690,0.2180802,96579.0,96578.0,0.9804507]
[1740259971887,0.011,96579.0,96578.0,0.9804507]
[1740259972486,0.2180802,96579.0,96578.0,0.9804507]
[1740259972990,0.011,96579.0,96578.0,0.9804507]
[1740259973382,0.001,96579.0,96578.0,0.9904507]
[1740259976783,0.2080802,96579.0,96578.0,0.9904507]
[1740259980693,0.2080802,96579.0,96578.0,1.0896107]
[1740259981499,0.2080802,96579.0,96578.0,0.3680107]
[1740259981700,0.2080802,96579.0,96578.0,0.7288107]
[1740259981895,0.001,96579.0,96578.0,0.7288107]
[1740259983385,0.2080802,96579.0,96578.0,0.7188107]
[1740259983589,0.2080802,96579.0,96578.0,0.7288107]
[1740259983989,0.001,96579.0,96578.0,0.7288107]
[1740259986600,0.15615592,96579.0,96578.0,0.7288107]
[1740259990995,0.001,96579.0,96578.0,0.7288107]
[1740259997803,0.001,96579.0,96578.0,1.0896107]
[1740260007024,0.001,96579.0,96578.0,0.3680107]
[1740260007225,0.001,96579.0,96578.0,1.0896107]
[1740260013543,0.001,96579.0,96578.0,0.3680107]
[1740260013745,0.001,96579.0,96578.0,1.0896107]
[1740260027047,0.001,96579.0,96578.0,0.9904507]
[1740260027347,0.001,96579.0,96578.0,1.0895707]
[1740260042167,0.001,96579.0,96578.0,1.0795707]
[1740260042568,0.001,96579.0,96578.0,1.0895707]
[1740260043357,0.001,96579.0,96578.0,0.9904507]
[1740260043558,0.001,96579.0,96578.0,1.0895707]
[1740260050570,0.001,96579.0,96578.0,0.7216]
[1740260050571,0.2080802,96579.0,96578.0,0.7216]
[1740260050759,0.2080802,96579.0,96578.0,1.0379623]
[1740260051170,0.2698802,96579.0,96578.0,1.0379623]
[1740260051967,0.2698802,96579.0,96578.0,0.82088]
[1740260052164,0.2798802,96579.0,96578.0,1.0282423]
[1740260052766,0.0728,96579.0,96578.0,1.0282423]
[1740260053076,0.2798802,96579.0,96578.0,1.0282423]
[1740260053768,0.33022382,96579.0,96578.0,1.0282423]
[1740260055079,0.33022382,96579.0,96578.0,1.0607423]
[1740260056171,0.33022382,96579.0,96578.0,1.0282423]
[1740260056376,0.33022382,96579.0,96578.0,1.0284823]
[1740260061286,0.2798802,96579.0,96578.0,1.0284823]
[1740260070989,0.2798802,96579.0,96578.0,0.9286823]
[1740260071486,0.2798802,96579.0,96578.0,1.0284423]
[1740260072081,0.43501297,96579.0,96578.0,1.0284423]
[1740260073490,0.43501297,96579.0,96578.0,0.3068423]
[1740260073693,0.43501297,96579.0,96578.0,0.6676423]
[1740260075804,0.3302238,96579.0,96578.0,0.6676423]
[1740260079496,0.51652344,96579.0,96578.0,0.6676423]
[1740260079891,0.51652344,96579.0,96578.0,0.46056]
[1740260080093,0.51652344,96579.0,96578.0,0.6676423]
[1740260080591,0.51652344,96579.0,96578.0,0.46056]
[1740260080797,0.51652344,96579.0,96578.0,0.6676423]
[1740260082893,0.51652344,96579.0,96578.0,0.3068423]
[1740260083090,0.51652344,96579.0,96578.0,0.6676423]
[1740260083697,0.3302238,96579.0,96578.0,0.6676423]
[1740260084697,0.2684238,96579.0,96578.0,0.6676423]
[1740260090794,0.2684238,96579.0,96578.0,0.3068423]
[1740260090998,0.2684238,96579.0,96578.0,0.6676423]
[1740260091500,0.37333256,96579.0,96578.0,0.6676423]
[1740260094103,0.2180802,96579.0,96578.0,0.6676423]
[1740260097406,0.2180802,96579.0,96578.0,0.46056]
[1740260097703,0.2684238,96579.0,96578.0,0.46056]
[1740260098206,0.2684238,96579.0,96578.0,0.3608]
[1740260098708,0.2684238,96579.0,96578.0,0.46]
[1740260099003,0.2684238,96579.0,96578.0,0.6670823]
[1740260111011,0.2684238,96579.0,96578.0,0.46]
[1740260111413,0.2684238,96579.0,96578.0,0.6670823]
[1740260116514,0.2684238,96579.0,96578.0,0.46]
[1740260116817,0.2684238,96579.0,96578.0,0.6670823]
[1740260124720,0.2584238,96579.0,96578.0,0.6670823]
[1740260125025,0.0513436,96579.0,96578.0,0.7091823]
[1740260125611,0.0517584,96601.0,96578.0,0.4029]
[1740260125923,0.25846575,96598.0,96591.0,0.5678544]
[1740260126125,0.24805416,96598.0,96591.0,0.6770144]
[1740260126325,0.2070492,96594.0,96591.0,0.6770144]
[1740260126717,0.42397144,96595.0,96594.0,0.207048]
[1740260126923,0.42397144,96595.0,96594.0,0.577848]
[1740260127321,0.42397144,96595.0,96594.0,0.677008]
[1740260128414,0.42397144,96595.0,96594.0,0.45996]
[1740260128618,0.42397144,96595.0,96594.0,0.46996]
[1740260128819,0.42397144,96595.0,96594.0,0.667008]
[1740260129227,0.42697144,96595.0,96594.0,0.678008]
[1740260129428,0.43197144,96595.0,96594.0,0.678008]
[1740260129623,0.43197144,96595.0,96594.0,0.668008]
[1740260129926,0.43197144,96595.0,96594.0,0.678008]
[1740260130520,0.2150461,96595.0,96594.0,0.678008]
[1740260130920,0.2150461,96595.0,96594.0,0.668008]
[1740260131718,0.2150461,96595.0,96594.0,0.678008]
[1740260132229,0.2150461,96595.0,96594.0,0.668008]
[1740260133326,0.2150461,96595.0,96594.0,0.678008]
[1740260133919,0.2150461,96595.0,96594.0,0.668008]
[1740260135218,0.2250461,96595.0,96594.0,0.46096]
[1740260135724,0.2250461,96595.0,96594.0,0.668008]
[1740260136822,0.2250461,96595.0,96594.0,0.668128]
[1740260143526,0.2220461,96595.0,96594.0,0.668128]
[1740260143728,0.2220461,96595.0,96594.0,0.667128]
[1740260150634,0.2220461,96595.0,96594.0,0.667528]
[1740260158647,0.27238308,96595.0,96594.0,0.667528]
[1740260162435,0.45833599,96595.0,96594.0,0.667528]
[1740260165253,0.27238308,96595.0,96594.0,0.667528]
[1740260169351,0.4006205,96595.0,96594.0,0.667528]
[1740260173953,0.27238308,96595.0,96594.0,0.667528]
[1740260179044,0.27238308,96595.0,96594.0,0.668328]
[1740260182654,0.27238308,96595.0,96594.0,0.307528]
[1740260182859,0.27238308,96595.0,96594.0,0.668328]
[1740260184259,0.45872388,96595.0,96594.0,0.668328]
[1740260185255,0.45872388,96595.0,96594.0,0.46128]
[1740260185961,0.45872388,96595.0,96594.0,0.668328]
[1740260187355,0.39973165,96595.0,96594.0,0.668328]
[1740260187755,0.39973165,96595.0,96594.0,0.22435868]
[1740260188953,0.39973165,96595.0,96594.0,0.43140668]
[1740260189358,0.39973165,96595.0,96594.0,0.22435868]
[1740260189662,0.39973165,96595.0,96594.0,0.43140668]
[1740260191060,0.39973165,96595.0,96594.0,0.207048]
[1740260195570,0.19268555,96595.0,96591.0,0.1522433]
[1740260195877,0.2588149,96593.0,96592.0,0.2070507]
[1740260196065,0.2688149,96593.0,96592.0,0.2070507]
[1740260196461,0.2070523,96592.0,96591.0,0.307534]
[1740260196668,0.2170523,96592.0,96591.0,0.307534]
[1740260198768,0.2190523,96592.0,96591.0,0.307534]
[1740260199370,0.26938928,96592.0,96591.0,0.307534]
[1740260203664,0.26938928,96592.0,96591.0,0.10048]
[1740260204067,0.26938928,96592.0,96591.0,0.3075344]
[1740260206464,0.26938928,96592.0,96591.0,0.10048]
[1740260207270,0.26938928,96592.0,96591.0,0.3075344]
[1740260209364,0.26938928,96592.0,96591.0,0.10048]
[1740260212066,0.2070566,96590.0,96589.0,0.5683783]
[1740260212267,0.2170566,96590.0,96589.0,0.6676983]
[1740260212470,0.2170566,96590.0,96589.0,0.46064]
[1740260212873,0.2170566,96590.0,96589.0,0.6676987]
[1740260213370,0.2170566,96590.0,96589.0,0.46064]
[1740260213576,0.2170566,96590.0,96589.0,0.6676987]
[1740260213779,0.2180566,96590.0,96589.0,0.6676987]
[1740260217382,0.26839358,96590.0,96589.0,0.6676987]
[1740260221282,0.26839358,96590.0,96589.0,0.46064]
[1740260221480,0.26839358,96590.0,96589.0,0.6676987]
[1740260221885,0.39154987,96590.0,96589.0,0.6676987]
[1740260223287,0.39154987,96590.0,96589.0,0.46064]
[1740260223477,0.39154987,96590.0,96589.0,0.6676987]
[1740260224685,0.26839358,96590.0,96589.0,0.6676987]
[1740260225089,0.26839358,96590.0,96589.0,0.6673787]
[1740260236403,0.39140629,96590.0,96589.0,0.6673787]
[1740260239313,0.45476416,96590.0,96589.0,0.6673787]
[1740260244818,0.45476416,96590.0,96589.0,0.6670587]
[1740260253518,0.26839358,96590.0,96589.0,0.6670587]
[1740260270332,0.45476601,96590.0,96589.0,0.6670587]
[1740260278541,0.38968868,96590.0,96589.0,0.6670587]
[1740260281539,0.38968868,96590.0,96589.0,0.3062587]
[1740260281737,0.26839358,96590.0,96589.0,0.6670587]
[1740260285739,0.26839358,96590.0,96589.0,0.3062587]
[1740260285935,0.26839358,96590.0,96589.0,0.6670587]
[1740260293838,0.38972125,96590.0,96589.0,0.6670587]
[1740260294241,0.38972125,96590.0,96589.0,0.3062587]
[1740260294443,0.38972125,96590.0,96589.0,0.6670587]
[1740260296853,0.38972125,96590.0,96589.0,0.46]
[1740260297161,0.42112125,96590.0,96589.0,0.46]
[1740260297450,0.42112125,96590.0,96575.0,0.0617]
[1740260297451,0.43096465,96590.0,96575.0,0.18630763]
[1740260297648,0.2170823,96578.0,96577.0,0.5678845]
[1740260298050,0.2809823,96578.0,96577.0,0.5678845]
[1740260298942,0.2809823,96578.0,96577.0,0.5708845]
[1740260299255,0.2809823,96578.0,96577.0,0.5738845]
[1740260300755,0.33131928,96578.0,96577.0,0.5738845]
[1740260300952,0.34154006,96578.0,96577.0,0.5738845]
[1740260301350,0.34154006,96578.0,96577.0,0.5708845]
[1740260301550,0.34154006,96578.0,96577.0,0.5738845]
[1740260301757,0.34154006,96578.0,96577.0,0.3668]
[1740260303248,0.34154006,96578.0,96577.0,0.3638]
[1740260303556,0.34154006,96578.0,96577.0,0.3658]
[1740260304556,0.34154006,96578.0,96577.0,0.3628]
[1740260304757,0.34154006,96578.0,96577.0,0.3658]
[1740260305749,0.34154006,96578.0,96577.0,0.5728845]
[1740260305949,0.34154006,96578.0,96577.0,0.3658]
[1740260306958,0.34154006,96578.0,96577.0,0.5728845]
[1740260307160,0.34154006,96578.0,96577.0,0.3658]
[1740260307851,0.34154006,96578.0,96577.0,0.5728845]
[1740260308252,0.34154006,96578.0,96577.0,0.3658]
[1740260308758,0.34154006,96578.0,96577.0,0.5728845]
[1740260308953,0.34154006,96578.0,96577.0,0.2120845]
[1740260309563,0.34154006,96578.0,96577.0,0.5728845]
[1740260310549,0.34154006,96578.0,96577.0,0.2120845]
[1740260310753,0.34154006,96578.0,96577.0,0.3658]
[1740260311060,0.34154006,96578.0,96577.0,0.5728845]
[1740260312262,0.34154006,96578.0,96577.0,0.2120845]
[1740260312464,0.52756205,96578.0,96577.0,0.2120845]
[1740260312666,0.52756205,96578.0,96577.0,0.5728845]
[1740260315070,0.34154006,96578.0,96577.0,0.5728845]
[1740260316370,0.34154006,96578.0,96577.0,0.3658]
[1740260317069,0.34154006,96578.0,96577.0,0.5728845]
[1740260317666,0.34154006,96578.0,96577.0,0.3658]
[1740260317866,0.34154006,96578.0,96577.0,0.5728845]
[1740260318674,0.34154006,96578.0,96577.0,0.3658]
[1740260319065,0.31024006,96578.0,96577.0,0.5728845]
[1740260319882,0.27764006,96578.0,96577.0,0.5728845]
[1740260321986,0.46366205,96578.0,96577.0,0.5728845]
[1740260325287,0.27764006,96578.0,96577.0,0.5728845]
[1740260325884,0.27764006,96578.0,96577.0,0.2120845]
[1740260326082,0.27764006,96578.0,96577.0,0.5728845]
[1740260329490,0.40575998,96578.0,96577.0,0.5728845]
[1740260332493,0.27764006,96578.0,96577.0,0.5728845]
[1740260335892,0.27764006,96578.0,96577.0,0.2120845]
[1740260336093,0.27764006,96578.0,96577.0,0.5728845]
[1740260336496,0.46403359,96578.0,96577.0,0.5728845]
[1740260337496,0.46403359,96578.0,96577.0,0.2120845]
[1740260337702,0.46403359,96578.0,96577.0,0.5728845]
[1740260341005,0.27764006,96578.0,96577.0,0.5728845]
[1740260341599,0.30964006,96578.0,96577.0,0.5728845]
[1740260344506,0.27764006,96578.0,96577.0,0.5728845]
[1740260344707,0.30784006,96578.0,96577.0,0.5728845]
[1740260349400,0.05033698,96578.0,96577.0,0.5828845]
[1740260350706,0.05033698,96578.0,96577.0,0.59339922]
[1740260352407,0.0326,96589.0,96577.0,0.59339922]
[1740260352408,0.15523255,96584.0,96577.0,0.38631472]
[1740260352608,0.15523255,96584.0,96583.0,0.6296394]
[1740260352808,0.15523255,96584.0,96583.0,0.7290394]
[1740260353912,0.15523255,96584.0,96583.0,0.7300394]
[1740260354111,0.15523255,96584.0,96583.0,1.0908394]
[1740260356808,0.16523255,96591.0,96590.0,0.2070566]
[1740260357115,0.15523255,96591.0,96590.0,0.2070566]
[1740260357420,0.15523255,96591.0,96590.0,0.2170566]
[1740260357628,0.16523255,96591.0,96590.0,0.2170566]
[1740260358010,0.16623255,96591.0,96590.0,0.2170566]
[1740260358513,0.16923255,96591.0,96590.0,0.2170566]
[1740260360126,0.014,96591.0,96590.0,0.2170566]
[1740260360622,0.2210544,96591.0,96590.0,0.2170566]
[1740260364423,0.014,96591.0,96590.0,0.2170566]
[1740260365411,0.2110544,96591.0,96590.0,0.2170566]
[1740260365916,0.2210544,96591.0,96590.0,0.2170566]
[1740260372728,0.2210544,96591.0,96590.0,0.5778566]
[1740260372929,0.2521544,96591.0,96590.0,0.5778566]
[1740260375228,0.2521544,96591.0,96590.0,0.2170566]
[1740260375420,0.2521544,96591.0,96590.0,0.5778566]
[1740260375620,0.0351,96591.0,96590.0,0.5778566]
[1740260375831,0.0451,96591.0,96590.0,0.5778566]
[1740260376225,0.0351,96591.0,96590.0,0.5778566]
[1740260376434,0.0351,96591.0,96590.0,0.2170566]
[1740260376628,0.0451,96591.0,96590.0,0.5778566]
[1740260377325,0.2521544,96591.0,96590.0,0.5778566]
[1740260382433,0.30249025,96591.0,96590.0,0.5778566]
[1740260383737,0.30249025,96591.0,96590.0,0.2170566]
[1740260383938,0.30249025,96591.0,96590.0,0.5778566]
[1740260384628,0.09543585,96591.0,96590.0,0.5778566]
[1740260385231,0.30249025,96591.0,96590.0,0.5778566]
[1740260386333,0.40745185,96591.0,96590.0,0.5778566]
[1740260388032,0.21692534,96610.0,96590.0,0.3708]
[1740260388239,0.0639,96609.0,96602.0,0.5678309]
[1740260388540,0.20718402,96603.0,96602.0,0.6673109]
[1740260388741,0.00015532,96603.0,96602.0,0.6974109]
[1740260389142,0.01115532,96603.0,96602.0,0.6974109]
[1740260389542,0.01515532,96603.0,96602.0,0.6974109]
[1740260389836,0.01415532,96603.0,96602.0,0.6974109]
[1740260390042,0.01815532,96603.0,96602.0,0.6974109]
[1740260392043,0.00815532,96603.0,96602.0,0.6974109]
[1740260392633,0.01815532,96603.0,96602.0,0.6974109]
[1740260395038,0.00815532,96603.0,96602.0,0.6974109]
[1740260395938,0.01815532,96603.0,96602.0,0.6974109]
[1740260396137,0.00815532,96603.0,96602.0,0.6974109]
[1740260396346,0.0639,96609.0,96608.0,0.207018]
[1740260396647,0.0639,96609.0,96608.0,0.567818]
[1740260396648,0.0314,96609.0,96608.0,0.567818]
[1740260397045,0.0314,96609.0,96608.0,0.600718]
[1740260397348,0.0314,96609.0,96608.0,0.567818]
[1740260397543,0.0414,96609.0,96608.0,0.567818]
[1740260397750,0.0314,96609.0,96608.0,0.567818]
[1740260397947,0.0414,96609.0,96608.0,0.567818]
[1740260398350,0.0414,96609.0,96608.0,0.568818]
[1740260398746,0.0464,96609.0,96608.0,0.569818]
[1740260399253,0.0464,96609.0,96608.0,0.568818]
[1740260408950,0.2534159,96609.0,96608.0,0.568818]
[1740260409151,0.0464,96609.0,96608.0,0.568818]
[1740260417345,0.2534159,96609.0,96608.0,0.568818]
[1740260418351,0.0464,96609.0,96608.0,0.568818]
[1740260419848,0.2534159,96609.0,96608.0,0.568818]
[1740260420053,0.2534159,96609.0,96608.0,0.667978]
[1740260423555,0.005,96609.0,96608.0,0.677978]
[1740260423862,0.15507274,96620.0,96617.0,0.2069987]
[1740260424153,0.15507274,96620.0,96617.0,0.6769587]
[1740260424345,0.15507274,96620.0,96617.0,0.7699587]
[1740260425260,0.01015532,96618.0,96617.0,0.45996]
[1740260425453,0.01015532,96618.0,96617.0,0.6669587]
[1740260425454,0.20715192,96618.0,96617.0,0.6669587]
[1740260425650,0.20715192,96618.0,96617.0,0.3608]
[1740260425855,0.20715192,96618.0,96617.0,0.6669587]
[1740260426055,0.21715192,96618.0,96617.0,0.3608]
[1740260426353,0.21715192,96618.0,96617.0,0.45996]
[1740260426556,0.21715192,96618.0,96617.0,0.6669587]
[1740260427045,0.21715192,96618.0,96617.0,0.85326633]
[1740260430953,0.26747708,96618.0,96617.0,0.6669587]
[1740260442160,0.25747708,96618.0,96617.0,0.6669587]
[1740260443870,0.26747708,96618.0,96617.0,0.6669587]
[1740260444272,0.21715192,96618.0,96617.0,0.6669587]
[1740260445669,0.20715192,96618.0,96617.0,0.6669587]
[1740260445973,0.21715192,96618.0,96617.0,0.6669587]
[1740260446771,0.00015532,96618.0,96617.0,0.6669587]
[1740260447070,0.21715192,96618.0,96617.0,0.6669587]
[1740260449478,0.01015532,96618.0,96617.0,0.6669587]
[1740260449663,0.21715192,96618.0,96617.0,0.6669587]
[1740260450875,0.01015532,96618.0,96617.0,0.6669587]
[1740260451175,0.21715192,96618.0,96617.0,0.6669587]
[1740260451977,0.01015532,96618.0,96617.0,0.6669587]
[1740260452173,0.21715192,96618.0,96617.0,0.6669587]
[1740260452668,0.01015532,96618.0,96617.0,0.6669587]
[1740260453068,0.21715192,96618.0,96617.0,0.6669587]
[1740260453768,0.01015532,96618.0,96617.0,0.6669587]
[1740260455075,0.00015532,96618.0,96617.0,0.6669587]
[1740260455280,0.01015532,96618.0,96617.0,0.6669587]
[1740260455578,0.00015532,96618.0,96617.0,0.6669587]
[1740260455973,0.21715192,96618.0,96617.0,0.6669587]
[1740260458275,0.00015532,96618.0,96617.0,0.6669587]
[1740260458582,0.21715192,96618.0,96617.0,0.6669587]
[1740260460471,0.00015532,96618.0,96617.0,0.6769587]
[1740260460890,0.15507736,96625.0,96617.0,0.46996]
[1740260461074,0.112539,96637.0,96624.0,0.3708]
[1740260461380,0.2677572,96637.0,96631.0,0.5677687]
[1740260461581,0.2069586,96636.0,96631.0,0.5677687]
[1740260461776,0.0608,96637.0,96631.0,0.5677687]
[1740260461971,0.2069638,96634.0,96631.0,0.5677687]
[1740260462173,0.0608,96637.0,96631.0,0.5677687]
[1740260462474,0.18709284,96632.0,96631.0,0.5677687]
[1740260462881,0.18909284,96632.0,96631.0,0.5677687]
[1740260463381,0.19909284,96632.0,96631.0,0.5677687]
[1740260463583,0.18909284,96632.0,96631.0,0.5677687]
[1740260463783,0.19909284,96632.0,96631.0,0.5677687]
[1740260463980,0.013,96632.0,96631.0,0.5677687]
[1740260464785,0.2199666,96632.0,96631.0,0.5677687]
[1740260465788,0.013,96632.0,96631.0,0.5677687]
[1740260466182,0.003,96632.0,96631.0,0.5677687]
[1740260466484,0.013,96632.0,96631.0,0.5677687]
[1740260466677,0.003,96632.0,96631.0,0.5677687]
[1740260466876,0.013,96632.0,96631.0,0.5677687]
[1740260467978,0.2199666,96632.0,96631.0,0.5677687]
[1740260470682,0.013,96632.0,96631.0,0.5677687]
[1740260475590,0.003,96632.0,96631.0,0.5777687]
[1740260476182,0.0318,96646.0,96631.0,0.3708]
[1740260476378,0.0318,96646.0,96640.0,0.5777495]
[1740260476685,0.01041412,96645.0,96640.0,0.6771095]
[1740260476989,0.01041412,96645.0,96640.0,0.7729095]
[1740260477281,0.0318,96646.0,96640.0,0.7729095]
[1740260477282,0.0418,96646.0,96640.0,0.78343252]
[1740260477489,0.00215469,96641.0,96640.0,0.78343252]
[1740260479492,0.00215469,96641.0,96640.0,0.78443252]
[1740260480189,0.00215469,96641.0,96640.0,0.78343252]
[1740260487294,0.00215469,96641.0,96640.0,0.42263252]
[1740260487491,0.00215469,96641.0,96640.0,1.14423252]
[1740260489091,0.00215469,96641.0,96640.0,1.1017095]
[1740260489290,0.00215469,96641.0,96640.0,1.0690095]
[1740260490793,9e-08,96641.0,96640.0,1.0690095]
[1740260493298,0.0305,96656.0,96655.0,0.2069173]
[1740260493494,0.0305,96656.0,96655.0,0.6773173]
[1740260495504,0.0305,96656.0,96655.0,0.6693173]
[1740260495799,0.2703152,96656.0,96655.0,0.6693173]
[1740260496011,0.2703152,96656.0,96655.0,0.46536]
[1740260496209,0.2703152,96656.0,96655.0,0.3658]
[1740260496696,0.2703152,96656.0,96655.0,0.46536]
[1740260496893,0.2703152,96656.0,96655.0,0.3658]
[1740260497100,0.2703152,96656.0,96655.0,0.46536]
[1740260497898,0.2703152,96656.0,96655.0,0.5727173]
[1740260498112,0.2703152,96656.0,96655.0,0.6724373]
[1740260498806,0.2703152,96656.0,96655.0,0.6703973]
[1740260498994,0.2703152,96656.0,96655.0,0.6723973]
[1740260500008,0.2703152,96656.0,96655.0,0.5727173]
[1740260500196,0.2703152,96656.0,96655.0,0.6723573]
[1740260502099,0.2703152,96656.0,96655.0,0.46344]
[1740260502299,0.2703152,96656.0,96655.0,0.46544]
[1740260505499,0.3009152,96656.0,96655.0,0.46544]
[1740260506297,0.35122046,96656.0,96655.0,0.46544]
[1740260510004,0.35122046,96656.0,96655.0,0.3658]
[1740260510205,0.35122046,96656.0,96655.0,0.005]
[1740260510407,0.5373133,96656.0,96655.0,0.1044]
[1740260510603,0.5373133,96656.0,96655.0,0.005]
[1740260511312,0.5373133,96656.0,96655.0,0.004]
[1740260511709,0.5373133,96656.0,96655.0,0.002]
[1740260512009,0.5373133,96656.0,96655.0,0.001]
[1740260512219,0.3303981,96656.0,96654.0,0.0994]
[1740260512415,0.2069173,96655.0,96654.0,0.0994]
[1740260514304,0.2069173,96655.0,96652.0,0.3608]
[1740260514305,0.2069216,96653.0,96652.0,0.3608]
[1740260514613,0.2069216,96653.0,96652.0,0.46012]
[1740260515618,0.2069216,96653.0,96652.0,0.46212]
[1740260516020,0.2069216,96653.0,96652.0,0.46312]
[1740260518215,0.2069216,96653.0,96652.0,0.6700438]
[1740260518824,0.25722686,96653.0,96652.0,0.6670438]
[1740260519017,0.25722686,96653.0,96652.0,0.6700438]
[1740260519217,0.25722686,96653.0,96652.0,0.6699638]
[1740260519419,0.25722686,96653.0,96652.0,0.6719638]
[1740260519621,0.25722686,96653.0,96652.0,0.6739638]
[1740260520917,0.05030526,96653.0,96652.0,0.6839638]
[1740260521115,0.25722686,96653.0,96652.0,0.6839638]
[1740260521722,0.2069216,96653.0,96652.0,0.6809638]
[1740260521922,0.2069216,96653.0,96652.0,0.6839638]
[1740260524624,0.36192554,96653.0,96652.0,0.6839638]
[1740260524925,0.36192554,96653.0,96652.0,0.6838438]
[1740260525829,0.36192554,96653.0,96652.0,0.5747238]
[1740260526039,0.36192554,96653.0,96652.0,0.6838438]
[1740260527932,0.25722531,96653.0,96652.0,0.6838438]
[1740260530926,0.25722531,96653.0,96652.0,0.5847238]
[1740260531226,0.25722531,96653.0,96652.0,0.6838438]
[1740260531629,0.05030371,96653.0,96652.0,0.6838438]
[1740260532032,0.25722531,96653.0,96652.0,0.6838438]
[1740260532424,0.25722531,96653.0,96652.0,0.6738438]
[1740260532736,0.25722531,96653.0,96652.0,0.6838438]
[1740260532923,0.25722531,96653.0,96652.0,0.5847238]
[1740260533126,0.25722531,96653.0,96652.0,0.6838438]
[1740260534125,0.25722531,96653.0,96652.0,0.5847238]
[1740260534438,0.2069216,96653.0,96652.0,0.6838438]
[1740260535031,0.2069216,96653.0,96652.0,0.6738438]
[1740260535438,0.2069216,96653.0,96652.0,0.6838438]
[1740260535632,0.15508099,96657.0,96656.0,0.2069152]
[1740260535833,0.36199409,96657.0,96656.0,0.2169152]
[1740260536036,0.15508099,96657.0,96656.0,0.2793152]
[1740260536844,0.15508099,96657.0,96656.0,0.28957735]
[1740260537132,0.15508099,96657.0,96656.0,0.29457735]
[1740260537634,0.15508099,96657.0,96656.0,0.2843152]
[1740260538739,0.00155244,96658.0,96657.0,0.2069131]
[1740260538936,0.20846334,96658.0,96657.0,0.2474131]
[1740260539234,0.00155244,96658.0,96657.0,0.2474131]
[1740260539437,0.00155244,96658.0,96657.0,0.3465331]
[1740260539832,0.00155244,96658.0,96657.0,0.2474131]
[1740260540037,0.00155244,96658.0,96657.0,0.3475331]
[1740260540236,0.00155244,96658.0,96657.0,0.3495331]
[1740260543947,0.20846334,96658.0,96657.0,0.3495331]
[1740260545342,0.36354433,96658.0,96657.0,0.3495331]
[1740260548451,0.20846334,96658.0,96657.0,0.3495331]
[1740260548953,0.20846334,96658.0,96657.0,0.10212]
[1740260549838,0.20846334,96658.0,96657.0,0.003]
[1740260550345,0.20846334,96658.0,96657.0,0.10212]